bitfinex/quotes_BTCUSD_20251214
["timestamp","ask_amount","ask_price","bid_price","bid_amount"]
[1765753194467,0.01130812,88432.0,88429.0,0.23747778]
[1765753194694,0.12370202,88432.0,88429.0,0.23747778]
[1765753194870,0.1123939,88432.0,88429.0,0.23747778]
[1765753197293,0.1334408,88432.0,88429.0,0.23747778]
[1765753198274,0.14474892,88432.0,88429.0,0.0113085]
[1765753198716,0.1334408,88432.0,88429.0,0.23747713]
[1765753198904,0.02415043,88431.0,88429.0,0.23747713]
[1765753199760,0.02415043,88431.0,88429.0,0.23747782]
[1765753200450,0.23746504,88435.0,88427.0,0.22617276]
[1765753200451,0.01130505,88456.0,88444.0,0.01130658]
[1765753200686,0.23455682,88461.0,88450.0,0.01130582]
[1765753200909,0.00011557,88455.0,88454.0,0.02766]
[1765753201261,0.00011557,88455.0,88454.0,0.05018]
[1765753201645,0.00846666,88461.0,88460.0,0.22609088]
[1765753201846,0.00846666,88461.0,88460.0,0.35514107]
[1765753202211,0.00846666,88461.0,88460.0,0.37766107]
[1765753202955,0.00846666,88461.0,88460.0,0.22609088]
[1765753203449,0.00846666,88461.0,88460.0,0.22809088]
[1765753204306,0.00846666,88461.0,88460.0,0.26625088]
[1765753205065,0.00846666,88461.0,88460.0,0.26725088]
[1765753205283,0.00846666,88461.0,88460.0,0.28313088]
[1765753205489,0.00846666,88461.0,88460.0,0.39544087]
[1765753205688,0.00846666,88461.0,88460.0,0.39644087]
[1765753206477,0.00846666,88461.0,88460.0,0.39544087]
[1765753206794,0.00846666,88461.0,88460.0,0.39744087]
[1765753207370,0.00846666,88461.0,88460.0,0.39644087]
[1765753208540,0.00846666,88461.0,88460.0,0.39744087]
[1765753209620,0.0001,88476.0,88473.0,0.23735885]
[1765753209911,0.0001,88476.0,88475.0,0.36712274]
[1765753210238,0.0001,88476.0,88475.0,0.38964274]
[1765753210452,0.0001,88476.0,88475.0,0.16359019]
[1765753211673,0.0001,88476.0,88475.0,0.16659019]
[1765753212367,0.0001,88476.0,88475.0,0.27890018]
[1765753212579,0.0001,88476.0,88475.0,0.62261857]
[1765753213412,0.01129841,88508.0,88505.0,0.01129879]
[1765753213647,0.01682189,88508.0,88503.0,0.23727796]
[1765753213860,0.01682189,88508.0,88507.0,0.02766]
[1765753214067,0.0003854,88508.0,88505.0,0.01129879]
[1765753214444,0.0003854,88508.0,88507.0,0.02766]
[1765753214649,0.0033854,88508.0,88507.0,0.01202]
[1765753214843,0.00968355,88510.0,88506.0,0.01129866]
[1765753215024,0.003,88508.0,88506.0,0.23727064]
[1765753215226,0.00011552,88510.0,88508.0,0.22596827]
[1765753215450,0.00011552,88510.0,88509.0,0.02766]
[1765753215766,0.00011552,88510.0,88509.0,0.05018]
[1765753216241,0.00011552,88510.0,88509.0,0.16359019]
[1765753216561,0.00011552,88510.0,88509.0,0.27590018]
[1765753218018,0.00011552,88510.0,88509.0,0.27690018]
[1765753218189,0.00411552,88510.0,88509.0,0.27690018]
[1765753218429,0.00011552,88510.0,88509.0,0.27690018]
[1765753219170,0.00011552,88510.0,88509.0,0.27790018]
[1765753219379,0.00011552,88510.0,88509.0,0.56860018]
[1765753220920,0.0002,88542.0,88535.0,0.22589936]
[1765753221120,0.00031546,88541.0,88540.0,0.2535466]
[1765753221580,0.00031546,88541.0,88540.0,0.2760666]
[1765753221810,0.01129241,88555.0,88542.0,0.33819149]
[1765753221974,0.01129216,88557.0,88553.0,0.01129267]
[1765753222300,0.01129241,88555.0,88554.0,0.01202]
[1765753222768,0.22584044,88559.0,88554.0,0.01202]
[1765753222769,0.33819677,88573.0,88555.0,0.01129241]
[1765753222951,0.0112905,88570.0,88564.0,0.01129126]
[1765753223196,0.0001,88595.0,88580.0,0.01128923]
[1765753223197,0.01128846,88586.0,88580.0,0.01128923]
[1765753223408,0.0112877,88592.0,88590.0,0.01202]
[1765753223605,0.01128553,88609.0,88600.0,0.01128668]
[1765753223734,0.01128426,88619.0,88616.0,0.01202]
[1765753223934,0.00042494,88617.0,88616.0,0.02766]
[1765753224133,0.00042494,88617.0,88616.0,0.05018]
[1765753225150,0.00042494,88617.0,88609.0,0.01202]
[1765753225151,0.01128515,88612.0,88609.0,0.01202]
[1765753225352,0.01128515,88612.0,88601.0,0.23701608]
[1765753225353,0.22570815,88610.0,88595.0,0.01792]
[1765753225679,0.01128859,88585.0,88582.0,0.01128897]
[1765753225906,0.01128935,88579.0,88576.0,0.01202]
[1765753226047,0.01128872,88584.0,88576.0,0.02330973]
[1765753226294,0.01128846,88586.0,88583.0,0.02766]
[1765753226629,0.01290133,88586.0,88583.0,0.02766]
[1765753226804,0.01290133,88586.0,88574.0,0.12359998]
[1765753226805,0.22580499,88572.0,88561.0,0.02443]
[1765753227012,0.22582388,88565.0,88556.0,0.01129228]
[1765753227353,0.2371304,88559.0,88556.0,0.00011544]
[1765753227673,0.23713004,88559.0,88556.0,0.00011544]
[1765753227889,0.23874291,88559.0,88556.0,0.00011544]
[1765753228085,0.22745611,88557.0,88556.0,0.00011544]
[1765753228297,0.51815611,88557.0,88556.0,0.00011544]
[1765753228495,0.51815611,88557.0,88512.0,0.0112979]
[1765753228496,0.01129688,88520.0,88512.0,0.0112979]
[1765753228695,0.01129726,88517.0,88512.0,0.00011546]
[1765753228932,0.011297,88519.0,88515.0,0.01129752]
[1765753229071,0.01129752,88515.0,88512.0,0.00011546]
[1765753229528,0.01129752,88515.0,88513.0,0.02443]
[1765753229704,0.01129752,88515.0,88514.0,0.0153]
[1765753229876,0.01129752,88515.0,88512.0,0.00011546]
[1765753230682,0.22595295,88514.0,88512.0,0.00011546]
[1765753231306,0.01792,88513.0,88512.0,0.00011546]
[1765753231722,0.01329752,88515.0,88512.0,0.04130546]
[1765753231723,0.01229752,88515.0,88512.0,0.04130546]
[1765753231922,0.01792,88514.0,88512.0,0.02463546]
[1765753232210,0.01992,88514.0,88513.0,0.02452]
[1765753232418,0.2259555,88513.0,88512.0,0.00011546]
[1765753233266,0.22856837,88513.0,88512.0,0.00011546]
[1765753233817,0.23056837,88513.0,88512.0,0.00011546]
[1765753234441,0.2289555,88513.0,88512.0,0.04130546]
[1765753234633,0.02092,88513.0,88512.0,0.04130546]
[1765753234836,0.02092,88513.0,88512.0,0.00011546]
[1765753235480,0.02253287,88513.0,88512.0,0.00011546]
[1765753236044,0.24848837,88513.0,88512.0,0.00011546]
[1765753237056,0.2289555,88513.0,88512.0,0.04130546]
[1765753238610,0.003,88513.0,88512.0,0.04130546]
[1765753240422,0.02921726,88517.0,88512.0,0.04130546]
[1765753240423,0.22588258,88542.0,88536.0,0.01129484]
[1765753240622,0.33871131,88575.0,88512.0,0.04130546]
[1765753240623,0.01129445,88539.0,88532.0,0.37007738]
[1765753240822,0.01129445,88539.0,88534.0,0.01129509]
[1765753241021,0.01129445,88539.0,88538.0,0.02813]
[1765753241352,0.01129445,88539.0,88535.0,0.11295032]
[1765753241353,0.22589681,88536.0,88535.0,0.11295032]
[1765753241559,0.33990358,88536.0,88535.0,0.11295032]
[1765753241761,0.28391469,88536.0,88535.0,0.11295032]
[1765753243494,0.01129688,88520.0,88517.0,0.01129726]
[1765753243690,0.01129662,88522.0,88517.0,0.01129726]
[1765753243831,0.01129662,88522.0,88517.0,0.03581726]
[1765753243832,0.23723066,88522.0,88517.0,0.03581726]
[1765753244032,0.01129675,88521.0,88518.0,0.08129713]
[1765753244257,0.01129675,88521.0,88518.0,0.07]
[1765753245654,0.22593764,88520.0,88518.0,0.07]
[1765753246173,0.01129675,88521.0,88518.0,0.07]
[1765753246354,0.01129675,88521.0,88518.0,0.072]
[1765753246768,0.22593764,88520.0,88518.0,0.071]
[1765753247366,0.22593764,88520.0,88519.0,0.01667]
[1765753247567,0.22593764,88520.0,88519.0,0.04119]
[1765753248420,0.22593764,88520.0,88519.0,0.01667]
[1765753248639,0.22593764,88520.0,88518.0,0.002]
[1765753249149,0.22593764,88520.0,88518.0,0.001]
[1765753249306,0.22595415,88514.0,88512.0,0.00011546]
[1765753250945,0.22795415,88514.0,88512.0,0.00011546]
[1765753251143,0.22895415,88514.0,88512.0,0.00011546]
[1765753254848,0.2289554,88514.0,88512.0,0.00011546]
[1765753257559,0.22890847,88514.0,88512.0,0.00011546]
[1765753258924,0.22886154,88514.0,88512.0,0.00011546]
[1765753259892,0.22886154,88514.0,88513.0,0.11295032]
[1765753260900,0.001,88514.0,88513.0,0.16268032]
[1765753261123,0.003,88514.0,88513.0,0.27499031]
[1765753261857,0.002,88514.0,88513.0,0.27499031]
[1765753262057,0.002,88514.0,88513.0,0.15768032]
[1765753262266,0.002,88514.0,88513.0,0.26999031]
[1765753262267,0.003,88514.0,88513.0,0.26999031]
[1765753263148,0.003,88514.0,88513.0,0.15768032]
[1765753263555,0.003,88514.0,88512.0,0.00011546]
[1765753263758,0.2259555,88513.0,88512.0,0.00011546]
[1765753265234,0.5166555,88513.0,88512.0,0.00011546]
[1765753265453,0.6290494,88513.0,88512.0,0.00011546]
[1765753266354,0.6310494,88513.0,88512.0,0.00011546]
[1765753266596,0.68006779,88513.0,88512.0,0.00011546]
[1765753266789,0.70440749,88513.0,88512.0,0.00011546]
[1765753266989,0.71940749,88513.0,88512.0,0.00111546]
[1765753267311,0.72896588,88513.0,88512.0,0.00111546]
[1765753267658,0.01130339,88469.0,88466.0,0.01149]
[1765753267865,0.01130326,88470.0,88466.0,0.0118754]
[1765753268112,0.01130339,88469.0,88466.0,0.0003854]
[1765753268324,0.22607044,88468.0,88466.0,0.0003854]
[1765753268952,0.24399044,88468.0,88466.0,0.0003854]
[1765753269190,0.1123939,88467.0,88466.0,0.0003854]
[1765753269399,0.1123939,88467.0,88456.0,0.05]
[1765753269400,0.4030939,88457.0,88456.0,0.05]
[1765753269604,0.4210139,88457.0,88456.0,0.05011552]
[1765753270676,0.33857683,88424.0,88419.0,0.05]
[1765753270892,0.35649683,88424.0,88423.0,0.00051557]
[1765753272238,0.3581097,88424.0,88423.0,0.00051557]
[1765753272442,0.3591097,88424.0,88423.0,0.00051557]
[1765753272883,0.3601097,88424.0,88423.0,0.00051557]
[1765753273061,0.2297958,88424.0,88423.0,0.00051557]
[1765753273265,0.01953287,88424.0,88423.0,0.00051557]
[1765753273672,0.02453287,88424.0,88423.0,0.00051557]
[1765753273869,0.02153287,88424.0,88423.0,0.00051557]
[1765753274251,0.006,88424.0,88423.0,0.00051557]
[1765753274428,0.02392,88424.0,88423.0,0.00051557]
[1765753274956,0.02192,88424.0,88423.0,0.01578557]
[1765753275154,0.006,88424.0,88423.0,0.15106556]
[1765753275499,0.01130505,88456.0,88448.0,0.01130607]
[1765753275696,0.01130518,88455.0,88451.0,0.01130569]
[1765753275876,0.01792,88459.0,88456.0,0.01130505]
[1765753276092,0.22606322,88471.0,88465.0,0.0113039]
[1765753276305,0.01130377,88466.0,88462.0,0.01130428]
[1765753276636,0.0113039,88465.0,88460.0,0.01130454]
[1765753276844,0.01168811,88465.0,88460.0,0.01130454]
[1765753277044,0.01130403,88464.0,88463.0,0.11295032]
[1765753277958,0.01168811,88465.0,88463.0,0.11295032]
[1765753278588,0.01130416,88463.0,88458.0,0.0113048]
[1765753278797,0.23776729,88465.0,88434.0,0.01149]
[1765753278798,0.02813716,88462.0,88434.0,0.01149]
[1765753279001,0.0113071,88440.0,88433.0,0.01130799]
[1765753279212,0.01130735,88438.0,88433.0,0.07]
[1765753279425,0.01130748,88437.0,88433.0,0.07]
[1765753279638,0.01130799,88433.0,88428.0,0.23747977]
[1765753279844,0.01130812,88432.0,88428.0,0.01130863]
[1765753279992,0.01130812,88432.0,88429.0,0.0113085]
[1765753280193,0.01130812,88432.0,88427.0,0.01130876]
[1765753280400,0.01130812,88432.0,88428.0,0.01130863]
[1765753280625,0.01130774,88435.0,88432.0,0.01130812]
[1765753280827,0.02926735,88438.0,88433.0,0.01130799]
[1765753280980,0.01130748,88437.0,88434.0,0.01130786]
[1765753281180,0.01130761,88436.0,88432.0,0.01130812]
[1765753281384,0.2261548,88435.0,88433.0,0.001]
[1765753281897,0.23746254,88435.0,88430.0,0.01130837]
[1765753282145,0.001,88432.0,88431.0,0.01130825]
[1765753282343,0.01130786,88434.0,88431.0,0.01130825]
[1765753282779,0.01230774,88435.0,88432.0,0.01130812]
[1765753282931,0.01130774,88435.0,88432.0,0.01130812]
[1765753283149,0.01796,88438.0,88435.0,0.01130774]
[1765753283309,0.22609175,88460.0,88452.0,0.01130556]
[1765753283513,0.01130492,88457.0,88453.0,0.01149]
[1765753283756,0.01130467,88459.0,88455.0,0.23740884]
[1765753283965,0.0113048,88458.0,88454.0,0.02297]
[1765753284371,0.01130492,88457.0,88454.0,0.03427531]
[1765753284614,0.0113048,88458.0,88455.0,0.01130518]
[1765753284761,0.01796,88461.0,88458.0,0.23739972]
[1765753284960,0.01796,88461.0,88458.0,0.25266972]
[1765753285975,0.0113025,88476.0,88467.0,0.01130364]
[1765753286198,0.0113025,88476.0,88460.0,0.01527]
[1765753286199,0.00038444,88476.0,88473.0,0.01130288]
[1765753286376,0.01130377,88466.0,88455.0,0.01130518]
[1765753286576,0.23739419,88461.0,88456.0,0.01130505]
[1765753286830,0.01130441,88461.0,88456.0,0.01130505]
[1765753287037,0.23739352,88461.0,88456.0,0.01130505]
[1765753287556,0.23739352,88461.0,88446.0,0.01130633]
[1765753287557,0.01130556,88452.0,88446.0,0.01130633]
[1765753287734,0.01130671,88443.0,88440.0,0.11295032]
[1765753287899,0.01130671,88443.0,88440.0,0.0113071]
[1765753288111,0.01130671,88443.0,88438.0,0.22614713]
[1765753288112,0.01130684,88442.0,88439.0,0.11295032]
[1765753288945,0.22613946,88441.0,88439.0,0.11306589]
[1765753289109,0.01130684,88442.0,88439.0,0.11306589]
[1765753289306,0.22613946,88441.0,88439.0,0.00111557]
[1765753289502,0.22613946,88441.0,88439.0,0.00211557]
[1765753290128,0.01130684,88442.0,88439.0,0.00211557]
[1765753290313,0.2374444,88442.0,88439.0,0.00111557]
[1765753290530,0.2374444,88442.0,88439.0,0.00011557]
[1765753291028,0.23744423,88443.0,88440.0,0.11295032]
[1765753291029,0.01130671,88443.0,88440.0,0.11295032]
[1765753291229,0.2261369,88442.0,88440.0,0.11295032]
[1765753291432,0.01130633,88446.0,88440.0,0.12425742]
[1765753291652,0.002,88441.0,88440.0,0.12425742]
[1765753292048,0.01130658,88444.0,88440.0,0.12425742]
[1765753292388,0.03944349,88446.0,88442.0,0.01130684]
[1765753292586,0.01796,88447.0,88444.0,0.01130658]
[1765753292763,0.01130595,88449.0,88446.0,0.01659]
[1765753293000,0.01130582,88450.0,88447.0,0.0113062]
[1765753293177,0.23740453,88457.0,88451.0,0.01130569]
[1765753293375,0.22610408,88455.0,88452.0,0.02417]
[1765753293588,0.23741024,88455.0,88452.0,0.02417]
[1765753293746,0.23740984,88455.0,88452.0,0.02417]
[1765753293942,0.01130518,88455.0,88451.0,0.01130569]
[1765753294199,0.03944247,88454.0,88451.0,0.01130569]
[1765753294503,0.03944247,88454.0,88450.0,0.01130582]
[1765753294903,0.01130556,88452.0,88449.0,0.02333595]
[1765753295102,0.2261369,88442.0,88436.0,0.02417]
[1765753295303,0.3385348,88441.0,88428.0,0.01130863]
[1765753295728,0.3385348,88441.0,88429.0,0.0113085]
[1765753295960,0.3385348,88441.0,88430.0,0.01130837]
[1765753296391,0.3385348,88441.0,88426.0,0.01130889]
[1765753296589,0.3385348,88441.0,88429.0,0.0113085]
[1765753296946,0.3385348,88441.0,88428.0,0.01130863]
[1765753297128,0.3385348,88441.0,88429.0,0.0113085]
[1765753297315,0.3385348,88441.0,88425.0,0.12425933]
[1765753297515,0.2261409,88441.0,88425.0,0.12425933]
[1765753297719,0.3385348,88441.0,88428.0,0.01130863]
[1765753298152,0.2261409,88441.0,88428.0,0.01130863]
[1765753298353,0.1123939,88440.0,88428.0,0.01130863]
[1765753298600,0.1123939,88440.0,88430.0,0.01130837]
[1765753299116,0.1123939,88440.0,88429.0,0.0113085]
[1765753299260,0.1123939,88440.0,88430.0,0.01130837]
[1765753299699,0.1143939,88440.0,88432.0,0.01130812]
[1765753299906,0.1143939,88440.0,88430.0,0.01130837]
[1765753300308,0.1153939,88440.0,88430.0,0.01130837]
[1765753300467,0.1153939,88440.0,88431.0,0.01130825]
[1765753301061,0.1153939,88440.0,88433.0,0.01130799]
[1765753301265,0.1153939,88440.0,88435.0,0.01130774]
[1765753301498,0.003,88440.0,88438.0,0.22614687]
[1765753301698,0.003,88440.0,88439.0,0.04087557]
[1765753302525,0.001,88440.0,88439.0,0.04087557]
[1765753303112,0.01130595,88449.0,88445.0,0.01130646]
[1765753303314,0.24406925,88453.0,88449.0,0.01130595]
[1765753303726,0.24406925,88453.0,88448.0,0.01130607]
[1765753303928,0.01130569,88451.0,88448.0,0.01130607]
[1765753304137,0.01130582,88450.0,88447.0,0.0113062]
[1765753304961,0.01130582,88450.0,88445.0,0.01130646]
[1765753305161,0.01130595,88449.0,88445.0,0.01130646]
[1765753305380,0.01130595,88449.0,88446.0,0.01130633]
[1765753305935,0.002,88450.0,88448.0,0.22612156]
[1765753306277,0.01130582,88450.0,88447.0,0.0113062]
[1765753306481,0.01130595,88449.0,88446.0,0.01130633]
[1765753306697,0.23942535,88449.0,88445.0,0.01130646]
[1765753306922,0.01130595,88449.0,88446.0,0.01130633]
[1765753307122,0.01130582,88450.0,88447.0,0.0113062]
[1765753307241,0.01230582,88450.0,88447.0,0.0113062]
[1765753307444,0.01230582,88450.0,88445.0,0.01130646]
[1765753307640,0.01130582,88450.0,88446.0,0.237433]
[1765753308089,0.01230595,88449.0,88446.0,0.01130633]
[1765753308293,0.01230595,88449.0,88445.0,0.01130646]
[1765753308545,0.01230595,88449.0,88446.0,0.01130633]
[1765753308825,0.001,88449.0,88447.0,0.22612411]
[1765753309151,0.001,88449.0,88446.0,0.2616025]
[1765753309346,0.001,88449.0,88446.0,0.2374325]
[1765753309751,0.01230582,88450.0,88447.0,0.0113062]
[1765753309965,0.002,88449.0,88448.0,0.22612156]
[1765753310171,0.002,88449.0,88447.0,0.0113062]
[1765753310370,0.02926543,88453.0,88449.0,0.01130595]
[1765753310570,0.01796,88453.0,88451.0,0.22611389]
[1765753311185,0.01796,88453.0,88450.0,0.35037012]
[1765753311618,0.01796,88453.0,88451.0,0.22611389]
[1765753311792,0.01796,88453.0,88450.0,0.12425614]
[1765753311970,0.01796,88453.0,88451.0,0.22611389]
[1765753312176,0.01796,88453.0,88450.0,0.12425614]
[1765753312612,0.05740259,88453.0,88450.0,0.12425614]
[1765753312934,0.2885114,88453.0,88450.0,0.11295032]
[1765753313116,0.03126543,88453.0,88450.0,0.11295032]
[1765753313335,0.05740259,88453.0,88450.0,0.12425614]
[1765753313516,0.05940259,88453.0,88450.0,0.12425614]
[1765753313724,0.03326543,88453.0,88450.0,0.12425614]
[1765753314089,0.02196,88453.0,88450.0,0.35037224]
[1765753315835,0.02196,88453.0,88452.0,0.24270133]
[1765753316352,0.02196,88453.0,88452.0,0.26698133]
[1765753316874,0.01796,88453.0,88452.0,0.26698133]
[1765753317096,0.01796,88453.0,88452.0,0.26898133]
[1765753317458,0.01796,88463.0,88462.0,0.01130428]
[1765753317938,0.01796,88463.0,88462.0,0.02683428]
[1765753318525,0.01796,88463.0,88462.0,0.05111428]
[1765753318952,0.01996,88463.0,88462.0,0.05111428]
[1765753319511,0.002,88463.0,88462.0,0.05111428]
[1765753319703,0.01130326,88470.0,88466.0,0.01130377]
[1765753319901,0.01130326,88470.0,88463.0,0.23738738]
[1765753319902,0.01130237,88477.0,88473.0,0.01130288]
[1765753320121,0.01130198,88480.0,88476.0,0.0268325]
[1765753320259,0.0379222,88479.0,88476.0,0.01553]
[1765753320461,0.22604489,88478.0,88476.0,0.01553]
[1765753320699,0.01130224,88478.0,88474.0,0.01130275]
[1765753320960,0.01130326,88470.0,88465.0,0.0231639]
[1765753321204,0.01130441,88461.0,88456.0,0.01130505]
[1765753321548,0.01130416,88463.0,88459.0,0.01130467]
[1765753321929,0.03944119,88464.0,88460.0,0.01130454]
[1765753322161,0.01130416,88463.0,88459.0,0.01130467]
[1765753322341,0.02813716,88464.0,88460.0,0.01130454]
[1765753322544,0.03944119,88464.0,88460.0,0.01130454]
[1765753322843,0.23738839,88463.0,88459.0,0.01130467]
[1765753323042,0.01130531,88454.0,88447.0,0.0113062]
[1765753323263,0.01130556,88452.0,88447.0,0.0113062]
[1765753323504,0.01130569,88451.0,88448.0,0.01130607]
[1765753323700,0.01130556,88452.0,88449.0,0.01130595]
[1765753323906,0.01130543,88453.0,88450.0,0.01130582]
[1765753324104,0.01130505,88456.0,88452.0,0.01130556]
[1765753324309,0.22607601,88466.0,88456.0,0.01130505]
[1765753324310,0.02926467,88459.0,88456.0,0.01130505]
[1765753325114,0.01796,88459.0,88456.0,0.01130505]
[1765753325481,0.01796,88459.0,88457.0,0.22609855]
[1765753325682,0.01796,88459.0,88458.0,0.01553]
[1765753325965,0.01130326,88470.0,88462.0,0.01130428]
[1765753326181,0.01130326,88470.0,88469.0,0.02739]
[1765753326327,0.01130275,88474.0,88471.0,0.01130313]
[1765753326530,0.01130288,88473.0,88470.0,0.02683326]
[1765753326738,0.01130288,88473.0,88471.0,0.02428]
[1765753327259,0.01130275,88474.0,88471.0,0.03558313]
[1765753327501,0.01130262,88475.0,88472.0,0.01130301]
[1765753327692,0.0113025,88476.0,88473.0,0.01130288]
[1765753327891,0.01796,88477.0,88474.0,0.01130275]
[1765753328127,0.02926237,88477.0,88473.0,0.01130288]
[1765753328970,0.02926237,88477.0,88474.0,0.01130275]
[1765753329173,0.03126237,88477.0,88474.0,0.01130275]
[1765753329753,0.0113025,88476.0,88472.0,0.01130301]
[1765753329961,0.01796,88477.0,88475.0,0.22605255]
[1765753330167,0.01796,88477.0,88476.0,0.01553]
[1765753330367,0.01996,88477.0,88476.0,0.01553]
[1765753330583,0.02096,88477.0,88476.0,0.01553]
[1765753330784,0.02096,88477.0,88476.0,0.03981]
[1765753331308,0.003,88477.0,88476.0,0.03981]
[1765753331446,0.001,88477.0,88476.0,0.03981]
[1765753331848,0.22602001,88488.0,88483.0,0.0113016]
[1765753331849,0.24398001,88488.0,88483.0,0.0113016]
[1765753332097,0.01168553,88487.0,88483.0,0.0113016]
[1765753332879,0.00038444,88487.0,88484.0,0.01130147]
[1765753333075,0.00138444,88487.0,88484.0,0.01130147]
[1765753333518,0.00138444,88487.0,88486.0,0.24155445]
[1765753333919,0.00138444,88487.0,88486.0,0.26583445]
[1765753334598,0.00038444,88487.0,88486.0,0.26583445]
[1765753334816,0.00138444,88487.0,88486.0,0.26583445]
[1765753335263,0.00038444,88487.0,88486.0,0.26583445]
[1765753335434,0.00038444,88487.0,88486.0,0.37814444]
[1765753335647,0.00038444,88487.0,88486.0,0.26583445]
[1765753335832,0.00038444,88487.0,88486.0,0.01653]
[1765753336042,0.00038444,88487.0,88486.0,0.001]
[1765753336903,0.00038444,88487.0,88479.0,0.11295032]
[1765753336904,0.0113016,88483.0,88479.0,0.11295032]
[1765753337104,0.01130173,88482.0,88479.0,0.11295032]
[1765753337309,0.23733728,88482.0,88479.0,0.11295032]
[1765753338050,0.23733728,88482.0,88466.0,0.01130377]
[1765753338051,0.01130326,88470.0,88466.0,0.01130377]
[1765753338197,0.01130301,88472.0,88466.0,0.01130377]
[1765753338198,0.22606438,88471.0,88466.0,0.01130377]
[1765753338432,0.01130301,88472.0,88468.0,0.01130352]
[1765753338632,0.01130313,88471.0,88468.0,0.01130352]
[1765753338834,0.01130326,88470.0,88465.0,0.2260781]
[1765753339043,0.01130364,88467.0,88464.0,0.01130403]
[1765753339235,0.01130339,88469.0,88466.0,0.11295032]
[1765753339436,0.01130339,88469.0,88466.0,0.11395032]
[1765753339840,0.01130339,88469.0,88468.0,0.001]
[1765753340044,0.01291626,88469.0,88468.0,0.001]
[1765753340217,0.22607044,88468.0,88466.0,0.001]
[1765753340397,0.1123939,88467.0,88466.0,0.001]
[1765753340636,0.1123939,88467.0,88457.0,0.01130492]
[1765753340637,0.01130454,88460.0,88457.0,0.01130492]
[1765753341073,0.01130428,88462.0,88458.0,0.0113048]
[1765753341379,0.01130441,88461.0,88456.0,0.01130505]
[1765753341585,0.01130467,88459.0,88455.0,0.01130518]
[1765753341786,0.01130441,88461.0,88457.0,0.01130492]
[1765753341949,0.01130428,88462.0,88457.0,0.01130492]
[1765753342114,0.01130428,88462.0,88457.0,0.08230492]
[1765753342319,0.01130403,88464.0,88458.0,0.23739956]
[1765753342519,0.05,88459.0,88458.0,0.23739956]
[1765753344081,0.05,88459.0,88458.0,0.23839956]
[1765753344449,0.05,88459.0,88458.0,0.23939956]
[1765753344646,0.05,88459.0,88458.0,0.002]
[1765753345053,0.05,88459.0,88458.0,0.267906]
[1765753346877,0.05,88459.0,88458.0,0.228096]
[1765753347607,0.06792,88459.0,88458.0,0.002]
[1765753347939,0.1803139,88459.0,88458.0,0.002]
[1765753348830,0.01130748,88437.0,88434.0,0.01130786]
[1765753349042,0.01130748,88437.0,88434.0,0.01142343]
[1765753349463,0.01130748,88437.0,88434.0,0.00011557]
[1765753349892,0.33854614,88436.0,88434.0,0.00011557]
[1765753350537,0.01130735,88438.0,88434.0,0.00011557]
[1765753350967,0.23743383,88446.0,88437.0,0.01130748]
[1765753351180,0.01792,88439.0,88438.0,0.02791735]
[1765753351400,0.01792,88439.0,88438.0,0.05072735]
[1765753352718,0.01792,88439.0,88438.0,0.02891735]
[1765753353659,0.01792,88439.0,88438.0,0.01230735]
[1765753354339,0.01792,88439.0,88438.0,0.001]
[1765753354340,0.04571707,88439.0,88438.0,0.001]
[1765753354573,0.6292487,88435.0,88434.0,0.00011557]
[1765753354806,0.22618293,88424.0,88423.0,0.0004]
[1765753355031,0.35653683,88424.0,88423.0,0.0004]
[1765753356621,0.35853683,88424.0,88423.0,0.0004]
[1765753357325,0.02296,88424.0,88423.0,0.0004]
[1765753357773,0.02296,88424.0,88423.0,0.03982]
[1765753357998,0.005,88424.0,88423.0,0.03982]
[1765753358224,0.01796,88428.0,88425.0,0.01130901]
[1765753358688,0.01796,88428.0,88426.0,0.22617782]
[1765753359549,0.01896,88428.0,88426.0,0.22617782]
[1765753359990,0.01130889,88426.0,88423.0,0.0004]
[1765753360213,0.22618037,88425.0,88423.0,0.0004]
[1765753360453,0.1123939,88424.0,88423.0,0.0004]
[1765753360887,0.11400677,88424.0,88423.0,0.0004]
[1765753361606,0.001,88428.0,88423.0,0.0004]
[1765753361832,0.01130735,88438.0,88433.0,0.01130799]
[1765753362055,0.01796,88439.0,88436.0,0.22615224]
[1765753362274,0.01796,88439.0,88436.0,0.23745985]
[1765753363126,0.01796,88439.0,88436.0,0.01130761]
[1765753363335,0.02926722,88439.0,88435.0,0.01130774]
[1765753363588,0.01796,88439.0,88436.0,0.23745856]
[1765753363997,0.02196,88439.0,88436.0,0.23745856]
[1765753364212,0.02096,88439.0,88436.0,0.23745856]
[1765753364554,0.02496,88439.0,88436.0,0.23745856]
[1765753364762,0.02096,88439.0,88436.0,0.23745856]
[1765753365157,0.02496,88439.0,88436.0,0.23745856]
[1765753366239,0.02496,88439.0,88433.0,0.01130799]
[1765753366240,0.01130748,88437.0,88433.0,0.01130799]
[1765753366437,0.01130735,88438.0,88434.0,0.01130786]
[1765753366690,0.01130748,88437.0,88434.0,0.01130786]
[1765753366910,0.01130735,88438.0,88435.0,0.01130774]
[1765753367121,0.03326722,88439.0,88436.0,0.01130761]
[1765753367339,0.003,88437.0,88436.0,0.01130761]
[1765753367798,0.004,88437.0,88436.0,0.01130761]
[1765753368203,0.003,88438.0,88436.0,0.01130761]
[1765753368633,0.0003,88437.0,88436.0,0.23745964]
[1765753369040,0.003,88437.0,88436.0,0.25406964]
[1765753369243,0.003,88437.0,88436.0,0.27687964]
[1765753369447,0.007,88437.0,88436.0,0.27687964]
[1765753369896,0.003,88437.0,88436.0,0.27687964]
[1765753370096,0.003,88437.0,88436.0,0.27787964]
[1765753370300,0.01796,88449.0,88443.0,0.22613434]
[1765753371410,0.01796,88449.0,88443.0,0.22713434]
[1765753372200,0.01796,88449.0,88443.0,0.26655434]
[1765753372424,0.01796,88449.0,88443.0,0.22713434]
[1765753374249,0.01796,88449.0,88443.0,0.26655434]
[1765753374659,0.01796,88449.0,88443.0,0.24374434]
[1765753377079,0.01796,88449.0,88443.0,0.26856434]
[1765753378463,0.01796,88449.0,88448.0,0.22612156]
[1765753378679,0.01835123,88449.0,88448.0,0.22612156]
[1765753379749,0.01935123,88449.0,88448.0,0.22612156]
[1765753381727,0.01935123,88449.0,88448.0,0.26706156]
[1765753381861,0.01935123,88449.0,88448.0,0.24224156]
[1765753382049,0.01935123,88449.0,88448.0,0.22612156]
[1765753382253,0.01935123,88449.0,88447.0,0.22612281]
[1765753382495,0.2261433,88440.0,88434.0,0.01130786]
[1765753382697,0.01130863,88428.0,88422.0,0.0113094]
[1765753382900,0.0113085,88429.0,88425.0,0.01130901]
[1765753383147,0.01130876,88427.0,88424.0,0.01130914]
[1765753383347,0.23748202,88428.0,88424.0,0.01130914]
[1765753383348,0.01130863,88428.0,88424.0,0.01130914]
[1765753383463,0.0113085,88429.0,88425.0,0.01130901]
[1765753383669,0.0113085,88429.0,88423.0,0.01170927]